bitfinex-derivatives/quotes_BTCF0:USTF0_20250905
["timestamp","ask_amount","ask_price","bid_price","bid_amount"]
[1757058926922,0.02905,113040.0,113030.0,1.65116697]
[1757058928614,0.02905,113040.0,113030.0,1.3936098]
[1757058928822,0.02905,113040.0,113030.0,1.65116697]
[1757058929318,0.02905,113040.0,113030.0,1.3885298]
[1757058929828,0.04941348,113040.0,113030.0,1.3885298]
[1757058930125,0.06741348,113040.0,113030.0,1.56204477]
[1757058930321,0.06741348,113040.0,113030.0,1.2951276]
[1757058930726,0.06741348,113040.0,113030.0,1.55268477]
[1757058931024,0.06741348,113040.0,113030.0,1.55708477]
[1757058931514,0.06741348,113040.0,113030.0,1.55688477]
[1757058931719,0.57497065,113040.0,113030.0,0.03427]
[1757058931922,0.57497065,113040.0,113030.0,1.18662717]
[1757058931923,0.93577065,113040.0,113030.0,1.18662717]
[1757058932424,0.57497065,113040.0,113030.0,1.18662717]
[1757058932613,0.31741348,113040.0,113030.0,1.18662717]
[1757058934118,0.31741348,113040.0,113030.0,0.3007131]
[1757058934321,0.31741348,113040.0,113030.0,0.29182717]
[1757058934622,0.57497065,113040.0,113030.0,1.18526717]
[1757058935124,0.31741348,113040.0,113030.0,1.18478717]
[1757058935324,0.57497065,113040.0,113030.0,1.18478717]
[1757058935627,0.57497065,113040.0,113030.0,0.92723]
[1757058935838,0.93577065,113040.0,113030.0,0.00442]
[1757058936138,0.93577065,113040.0,113030.0,0.89738]
[1757058936927,0.93577065,113040.0,113030.0,0.92643]
[1757058937232,0.93577065,113040.0,113030.0,1.18398717]
[1757058937436,0.93577065,113040.0,113030.0,0.89738]
[1757058937627,0.93577065,113040.0,113030.0,0.00442]
[1757058938926,0.67821348,113040.0,113030.0,0.00442]
[1757058939122,0.93577065,113040.0,113030.0,0.00442]
[1757058939823,0.71846613,113040.0,113020.0,0.0001]
[1757058940028,0.04701,113030.0,113020.0,0.0001]
[1757058940230,0.04701,113020.0,113010.0,0.3609]
[1757058940430,0.30456717,113020.0,113000.0,0.47008042]
[1757058940624,0.30456717,113010.0,113000.0,1.61280042]
[1757058940835,0.30456717,113010.0,113000.0,1.50352]
[1757058941236,0.30456717,113010.0,113000.0,1.14272]
[1757058941632,0.30456717,113010.0,113000.0,0.25]
[1757058942333,0.018,113000.0,112990.0,1.25776]
[1757058942530,0.2962185,113000.0,112990.0,1.50766]
[1757058944028,0.3252285,113000.0,112990.0,0.61522]
[1757058944228,0.6860285,113000.0,112990.0,0.25442]
[1757058944533,0.42847133,113000.0,112990.0,0.25442]
[1757058944748,0.6860285,113000.0,112990.0,0.25442]
[1757058945138,0.06767133,113000.0,112990.0,0.64427]
[1757058945346,0.3252285,113000.0,112990.0,0.90182717]
[1757058946143,0.06767133,113000.0,112990.0,0.90182717]
[1757058946444,0.3252285,113000.0,112990.0,0.90182717]
[1757058946645,0.3252285,113000.0,112990.0,0.64427]
[1757058946848,0.06767133,113000.0,112990.0,0.64427]
[1757058947049,0.3252285,113000.0,112990.0,0.64427]
[1757058947351,0.3252285,113000.0,112990.0,0.90182717]
[1757058947555,0.3252285,113000.0,112990.0,0.64427]
[1757058947748,0.06767133,113000.0,112990.0,0.64427]
[1757058947948,0.3252285,113000.0,112990.0,0.64427]
[1757058948346,0.06767133,113000.0,112990.0,0.92080717]
[1757058948549,0.3252285,113000.0,112990.0,0.64427]
[1757058948755,0.3252285,113000.0,112990.0,0.90182717]
[1757058948948,0.06767133,113000.0,112990.0,0.90182717]
[1757058949147,0.3252285,113000.0,112990.0,0.64427]
[1757058949444,0.3252285,113000.0,112990.0,0.90182717]
[1757058950248,0.3252285,113000.0,112990.0,0.64427]
[1757058951355,0.3252285,113000.0,112990.0,0.90182717]
[1757058951657,0.3252285,113000.0,112990.0,0.64427]
[1757058954848,0.06767133,113000.0,112990.0,0.66325]
[1757058955047,0.3252285,113000.0,112990.0,0.66325]
[1757058955446,0.02066133,113000.0,112990.0,0.92080717]
[1757058955644,0.25755717,113030.0,113020.0,0.01898]
[1757058955857,0.28989717,113030.0,113020.0,0.37978]
[1757058957149,0.28989717,113030.0,113020.0,0.3608]
[1757058957947,0.29189717,113030.0,113020.0,0.3608]
[1757058958449,0.36219359,113030.0,113020.0,0.3608]
[1757058959657,0.29189717,113030.0,113020.0,0.3608]
[1757058959857,0.65269717,113030.0,113010.0,0.01898]
[1757058960054,0.65269717,113030.0,113010.0,0.3608]
[1757058960055,1.17781717,113020.0,113010.0,0.3608]
[1757058960356,1.17781717,113020.0,113000.0,0.3842]
[1757058960357,0.92026,113020.0,113000.0,0.3842]
[1757058960656,0.92878247,113010.0,113000.0,0.00442]
[1757058960953,0.56798247,113010.0,113000.0,0.00442]
[1757058962447,0.63797988,113010.0,113000.0,0.00442]
[1757058963461,1.52365988,113010.0,113000.0,0.00442]
[1757058965557,1.88445988,113010.0,113000.0,0.00442]
[1757058966556,0.99877988,113010.0,113000.0,0.00442]
[1757058966762,1.90539505,113010.0,113000.0,0.00442]
[1757058969157,0.02662,112990.0,112970.0,0.37978]
[1757058969369,0.54173434,112980.0,112970.0,0.41114]
[1757058969861,0.02662,112980.0,112970.0,0.41114]
[1757058970456,0.28417717,112980.0,112970.0,0.41114]
[1757058970656,0.02662,112980.0,112970.0,0.41114]
[1757058970865,0.28417717,112980.0,112970.0,0.41414]
[1757058971061,0.28417717,112980.0,112970.0,0.41914]
[1757058971464,0.02662,112980.0,112970.0,0.67669717]
[1757058971763,0.28417717,112980.0,112970.0,0.67669717]
[1757058972552,0.28417717,112980.0,112970.0,0.41914]
[1757058972756,0.28417717,112980.0,112970.0,0.67669717]
[1757058972957,0.28417717,112980.0,112970.0,0.41914]
[1757058973360,0.28417717,112980.0,112970.0,0.05834]
[1757058973566,0.28417717,112980.0,112970.0,0.41914]
[1757058973959,0.02662,112980.0,112970.0,0.41914]
[1757058974159,0.28417717,112980.0,112970.0,0.41914]
[1757058975265,0.54173434,112980.0,112970.0,0.41914]
[1757058975464,0.255886,112980.0,112970.0,0.41914]
[1757058976664,0.255886,112980.0,112970.0,0.38778]
[1757058976864,0.866686,112980.0,112970.0,0.008]
[1757058977369,1.745246,112980.0,112970.0,0.008]
[1757058977765,2.884446,112980.0,112970.0,0.008]
[1757058978068,3.245246,112980.0,112970.0,0.007]
[1757058978268,3.01598,112980.0,112970.0,0.006]
[1757058978472,3.245246,112980.0,112970.0,0.006]
[1757058978769,2.366686,112980.0,112970.0,0.05985]
[1757058978968,3.244206,112980.0,112970.0,0.02588]
[1757058979168,3.244206,112980.0,112970.0,0.006]
[1757058980663,2.366686,112980.0,112970.0,0.006]
[1757058980862,3.244246,112980.0,112970.0,0.006]
[1757058981263,3.243086,112980.0,112970.0,0.006]
[1757058981460,2.366686,112980.0,112970.0,0.006]
[1757058981657,2.13742,112980.0,112970.0,0.03997]
[1757058981872,3.242726,112980.0,112970.0,0.03997]
[1757058982273,2.13742,112980.0,112970.0,0.05985]
[1757058982471,2.366686,112980.0,112970.0,0.05985]
[1757058982668,1.755886,112980.0,112970.0,0.05985]
[1757058982972,2.633326,112980.0,112970.0,0.05985]
[1757058983172,2.40406,112980.0,112970.0,0.05985]
[1757058983372,2.633326,112980.0,112970.0,0.05985]
[1757058983572,2.633126,112980.0,112970.0,0.05985]
[1757058983963,1.52662,112980.0,112970.0,0.30985]
[1757058984162,2.40342,112980.0,112970.0,0.67065]
[1757058984370,0.90342,112980.0,112970.0,0.67065]
[1757058984672,0.89704858,112990.0,112970.0,0.67065]
[1757058984971,2.42301858,112990.0,112980.0,0.41465]
[1757058985172,2.65218458,112990.0,112980.0,0.41465]
[1757058985364,1.15218458,112990.0,112980.0,0.41465]
[1757058986675,1.15162458,112990.0,112980.0,0.41465]
[1757058987369,1.15162458,112990.0,112980.0,0.41565]
[1757058987776,1.15162458,112990.0,112980.0,0.41865]
[1757058988474,1.15162458,112990.0,112980.0,0.41665]
[1757058989166,1.15162458,112990.0,112980.0,0.41565]
[1757058989476,1.15162458,112990.0,112980.0,0.41465]
[1757058990864,1.15162458,112990.0,112980.0,0.05385]
[1757058991067,1.15162458,112990.0,112970.0,0.38078]
[1757058991264,0.255236,112980.0,112970.0,0.41475]
[1757058991470,0.255236,112980.0,112970.0,0.41465]
[1757058991968,0.255236,112980.0,112970.0,0.05385]
[1757058993278,1.126356,112980.0,112970.0,0.05385]
[1757058993679,1.126356,112980.0,112970.0,0.41465]
[1757058995176,1.126356,112980.0,112960.0,0.37988]
[1757058995382,0.02597,112970.0,112960.0,0.41385]
[1757058995587,0.255236,112970.0,112960.0,0.41375]
[1757058996284,0.02597,112970.0,112960.0,0.41375]
[1757058997580,0.0001,112980.0,112960.0,0.894016]
[1757058997778,0.02607,112980.0,112970.0,0.41465]
[1757058997979,0.255236,112980.0,112970.0,0.41465]
[1757058998880,0.02597,112980.0,112970.0,0.41465]
[1757058999185,0.255236,112980.0,112970.0,0.41465]
[1757058999383,0.02597,112980.0,112970.0,0.41465]
[1757058999587,0.255236,112980.0,112970.0,0.41465]
[1757058999984,0.02597,112980.0,112970.0,0.41465]
[1757059000379,0.255236,112980.0,112970.0,0.41465]
[1757059001290,0.02597,112980.0,112970.0,0.41465]
[1757059004684,0.02597,112980.0,112970.0,0.41565]
[1757059005996,0.02597,112980.0,112970.0,0.41465]
[1757059008289,0.02597,112980.0,112970.0,0.41565]
[1757059008687,0.02597,112980.0,112970.0,0.41465]
[1757059011885,0.255236,112980.0,112970.0,0.41465]
[1757059012093,0.02597,112980.0,112970.0,0.41465]
[1757059014885,0.02597,112980.0,112970.0,0.41565]
[1757059024799,0.255236,112980.0,112970.0,0.41465]
[1757059025696,0.02597,112980.0,112970.0,0.41465]
[1757059026489,0.255236,112980.0,112970.0,0.41465]
[1757059029796,0.505236,112980.0,112970.0,0.41465]
[1757059034809,1.373756,112980.0,112970.0,0.41465]
[1757059035502,1.66034486,112980.0,112970.0,0.41465]
[1757059038192,1.66034486,112980.0,112970.0,0.01988]
[1757059038409,1.66022486,112980.0,112960.0,0.37988]
[1757059038597,0.27861743,112970.0,112960.0,0.41083]
[1757059038800,0.64026575,112970.0,112960.0,0.41073]
[1757059040005,0.64026575,112970.0,112960.0,0.41173]
[1757059040599,0.38233832,112970.0,112960.0,0.41173]
[1757059040801,0.64026575,112970.0,112960.0,0.41173]
[1757059041409,0.38233832,112970.0,112960.0,0.41173]
[1757059041903,0.38233832,112970.0,112960.0,0.41073]
[1757059042201,0.64026575,112970.0,112960.0,0.41073]
[1757059043599,0.38233832,112970.0,112960.0,0.41073]
[1757059043804,0.64026575,112970.0,112960.0,0.41073]
[1757059045308,0.04109951,112970.0,112960.0,0.66865743]
[1757059045514,0.29902694,112970.0,112960.0,0.41073]
[1757059045707,0.27833694,112970.0,112960.0,0.66865743]
[1757059046106,0.29848694,112970.0,112960.0,0.66865743]
[1757059046803,0.04055951,112970.0,112960.0,0.66865743]
[1757059047004,0.29848694,112970.0,112960.0,0.66865743]
[1757059047201,0.29848694,112970.0,112960.0,0.41073]
[1757059047202,0.04055951,112970.0,112960.0,0.41073]
[1757059047400,0.29848694,112970.0,112960.0,0.66865743]
[1757059047605,0.04055951,112970.0,112960.0,0.66865743]
[1757059047908,0.02040951,112970.0,112960.0,0.66865743]
[1757059048211,0.27833694,112970.0,112960.0,0.66865743]
[1757059048612,0.29848694,112970.0,112960.0,0.41073]
[1757059048812,0.29848694,112970.0,112960.0,0.66865743]
[1757059049211,0.29848694,112970.0,112960.0,0.41073]
[1757059049411,0.29848694,112970.0,112960.0,0.66865743]
[1757059050306,0.04055951,112970.0,112960.0,0.66865743]
[1757059050508,0.02040951,112970.0,112960.0,0.91865743]
[1757059050709,0.02040951,112970.0,112960.0,2.10677743]
[1757059051809,0.02040951,112970.0,112960.0,1.78677743]
[1757059052010,0.02040951,112970.0,112960.0,2.27595785]
[1757059052406,0.0001,112980.0,112960.0,2.36447855]
[1757059052615,0.0001,112980.0,112970.0,0.75648033]
[1757059052916,0.02080858,112990.0,112980.0,0.04924]
[1757059053116,0.02070858,112990.0,112980.0,0.66796743]
[1757059053512,0.02070858,112990.0,112980.0,0.41004]
[1757059053707,0.27863601,112990.0,112980.0,0.66796743]
[1757059054012,0.30935601,112990.0,112980.0,0.66796743]
[1757059055111,0.30935601,112990.0,112980.0,0.67681005]
[1757059055307,0.05342858,112990.0,112980.0,0.41888262]
[1757059055506,0.31135601,112990.0,112980.0,0.67681005]
[1757059057718,0.05342858,112990.0,112980.0,0.41004]
[1757059058018,0.31135601,112990.0,112980.0,0.41004]
[1757059058609,0.05342858,112990.0,112980.0,0.41004]
[1757059058809,0.31135601,112990.0,112980.0,0.41004]
[1757059059210,0.31135601,112990.0,112980.0,0.66796743]
[1757059059513,0.31135601,112990.0,112980.0,0.41004]
[1757059059718,0.31135601,112990.0,112980.0,0.66796743]
[1757059059911,0.31135601,112990.0,112980.0,0.41004]
[1757059060111,0.31135601,112990.0,112980.0,0.66796743]
[1757059060312,0.05342858,112990.0,112980.0,0.41004]
[1757059060514,0.31135601,112990.0,112980.0,0.66796743]
[1757059062421,0.05342858,112990.0,112980.0,0.66796743]
[1757059062721,0.31135601,112990.0,112980.0,0.66796743]
[1757059063320,0.31135601,112990.0,112980.0,0.41004]
[1757059063523,0.31135601,112990.0,112980.0,0.66796743]
[1757059064022,0.31135601,112990.0,112980.0,0.41004]
[1757059064321,0.31135601,112990.0,112980.0,0.66796743]
[1757059064530,0.02270858,112990.0,112980.0,0.67666887]
[1757059065019,0.28063601,112990.0,112980.0,0.67666887]
[1757059065215,0.02270858,112990.0,112980.0,0.67666887]
[1757059065821,0.28063601,112990.0,112980.0,0.67666887]
[1757059066021,0.05342858,112990.0,112980.0,0.66796743]
[1757059066221,0.31135601,112990.0,112980.0,0.66796743]
[1757059066420,0.05342858,112990.0,112980.0,0.66796743]
[1757059066719,0.31135601,112990.0,112980.0,0.66796743]
[1757059068720,0.31135601,112990.0,112980.0,0.67677315]
[1757059069418,0.05342858,112990.0,112980.0,0.41884572]
[1757059069619,0.31135601,112990.0,112980.0,0.67677315]
[1757059070021,0.31135601,112990.0,112980.0,0.41884572]
[1757059070221,0.31135601,112990.0,112980.0,0.67677315]
[1757059070626,0.29064743,112990.0,112980.0,0.67677315]
[1757059070825,0.29064743,112990.0,112980.0,0.66796743]
[1757059071222,0.29064743,112990.0,112980.0,0.41004]
[1757059071420,0.29064743,112990.0,112980.0,0.66796743]
[1757059071825,0.29064743,112990.0,112980.0,0.41888106]
[1757059072025,0.29064743,112990.0,112980.0,0.67680849]
[1757059072521,0.29064743,112990.0,112980.0,0.41888106]
[1757059072726,0.29064743,112990.0,112980.0,0.67680849]
[1757059072927,0.29064743,112990.0,112980.0,0.66796743]
[1757059074218,0.03272,112990.0,112980.0,0.41004]
[1757059074419,0.29064743,112990.0,112980.0,0.66796743]
[1757059074828,0.29064743,112990.0,112980.0,0.67675626]
[1757059076636,0.03272,112990.0,112980.0,0.67675626]
[1757059076833,0.29064743,112990.0,112980.0,0.67675626]
[1757059078544,0.29064743,112990.0,112980.0,1.54455626]
[1757059081444,0.29064743,112990.0,112980.0,1.53572743]
[1757059081845,0.29064743,112990.0,112980.0,1.5443976]
[1757059082147,0.29064743,112990.0,112980.0,1.28647017]
[1757059082332,0.29064743,112990.0,112980.0,1.5443976]
[1757059082934,0.03272,112990.0,112980.0,0.41004]
[1757059083140,0.29064743,112990.0,112980.0,1.27772]
[1757059083446,0.03272,112990.0,112980.0,1.27772]
[1757059083643,0.29064743,112990.0,112980.0,0.41004]
[1757059086250,0.03272,112990.0,112980.0,0.66796743]
[1757059086548,0.29064743,112990.0,112980.0,0.66796743]
[1757059091653,0.002,112990.0,112980.0,1.57439436]
[1757059091954,0.002,112990.0,112980.0,1.17589486]
[1757059092155,0.002,112990.0,112980.0,0.91796743]
[1757059092352,0.002,112990.0,112980.0,0.66004]
[1757059092649,0.002,112990.0,112980.0,0.91796743]
[1757059094249,0.0001,113000.0,112990.0,0.01931]
[1757059094555,0.05223955,113010.0,113000.0,0.0501]
[1757059094762,0.31006698,113010.0,113000.0,0.4109]
[1757059095957,0.31106698,113010.0,113000.0,0.4109]
[1757059096357,1.18749441,113010.0,112990.0,0.01941]
[1757059096558,0.02916,113000.0,112990.0,0.41127]
[1757059096851,0.28708743,113000.0,112990.0,0.41117]
[1757059097053,0.53708743,113000.0,112990.0,0.41117]
[1757059097249,0.27916,113000.0,112990.0,0.41117]
[1757059097959,0.27916,113000.0,112990.0,0.41217]
[1757059098153,0.50831605,113000.0,112990.0,0.41217]
[1757059099358,0.27916,113000.0,112990.0,0.41217]
[1757059099552,0.50831605,113000.0,112990.0,0.41217]
[1757059099753,0.50831605,113000.0,112990.0,1.27925]
[1757059100354,0.7374721,113000.0,112990.0,0.05137]
[1757059100660,0.51813605,113000.0,112990.0,0.41217]
[1757059100853,0.50831605,113000.0,112990.0,0.41217]
[1757059102061,0.50831605,113000.0,112990.0,1.27917]
[1757059102563,0.25831605,113000.0,112990.0,1.27917]
[1757059103354,0.25831605,113000.0,112990.0,0.41217]
[1757059103755,0.25831605,113000.0,112990.0,1.27909]
[1757059104156,0.2502656,113010.0,112990.0,1.27909]
[1757059104357,0.2794256,113010.0,113000.0,0.41014]
[1757059104560,0.2793256,113010.0,113000.0,0.41014]
[1757059107668,0.02100955,113010.0,113000.0,0.41014]
[1757059107860,0.02100955,113010.0,113000.0,1.28553142]
[1757059109172,0.02100955,113010.0,113000.0,1.76568747]
[1757059109365,0.02100955,113010.0,113000.0,1.53653142]
[1757059109677,0.02100955,113010.0,113000.0,1.53645142]
[1757059111772,0.02100955,113010.0,113000.0,1.53637142]
[1757059112070,0.0001,113020.0,113010.0,0.04934]
[1757059112273,0.02926,113030.0,113020.0,0.04934]
[1757059112472,0.25831605,113030.0,113020.0,0.41014]
[1757059112666,0.25831605,113030.0,113020.0,1.27662]
[1757059113570,0.25831605,113030.0,113020.0,0.48148306]
[1757059113866,0.25831605,113030.0,113020.0,1.34792306]
[1757059114764,0.25831605,113030.0,113020.0,1.34788306]
[1757059114965,0.03016,113030.0,113020.0,1.34788306]
[1757059115272,0.50931605,113030.0,113020.0,1.27654]
[1757059116371,0.50931605,113030.0,113020.0,0.41014]
[1757059116575,0.50931605,113030.0,113020.0,1.2765]
[1757059117274,0.50931605,113030.0,113020.0,0.41014]
[1757059117477,0.50931605,113030.0,113020.0,1.27638]
[1757059120778,0.50931605,113030.0,113020.0,0.41014]
[1757059121075,0.50931605,113030.0,113020.0,1.2763]
[1757059121272,0.25931605,113030.0,113020.0,1.2763]
[1757059121764,0.23015605,113030.0,113020.0,1.2763]
[1757059122665,0.001,113030.0,113020.0,1.2763]
[1757059122864,0.001,113030.0,113020.0,0.41456]
[1757059123074,0.001,113030.0,113020.0,1.2806]
[1757059125181,0.001,113030.0,113020.0,1.28048]
[1757059125679,0.23015605,113030.0,113020.0,1.28048]
[1757059127074,0.25931605,113030.0,113020.0,0.41456]
[1757059127275,0.25931605,113030.0,113020.0,1.28044]
[1757059128875,0.03016,113030.0,113020.0,1.28044]
[1757059129076,0.25931605,113030.0,113020.0,0.41456]
[1757059129276,0.03016,113030.0,113020.0,1.28024]
[1757059129687,0.25931605,113030.0,113020.0,1.28024]
[1757059130380,0.03016,113030.0,113020.0,1.28024]
[1757059130683,0.25931605,113030.0,113020.0,1.28024]
[1757059132374,0.25931605,113030.0,113020.0,1.28008]
[1757059135081,0.25931605,113030.0,113020.0,0.41456]
[1757059135282,0.03016,113030.0,113020.0,1.28004]
[1757059135483,0.25931605,113030.0,113020.0,1.28004]
[1757059137181,0.03016,113030.0,113020.0,1.28004]
[1757059137489,0.001,113030.0,113020.0,1.28004]
[1757059138189,0.23015605,113030.0,113020.0,1.28004]
[1757059138981,0.001,113030.0,113020.0,1.28004]
[1757059140886,0.25848605,113030.0,113020.0,0.41456]
[1757059141093,0.25848605,113030.0,113020.0,1.27964]
[1757059141590,0.02933,113030.0,113020.0,0.41456]
[1757059141792,0.02933,113030.0,113020.0,1.2796]
[1757059141992,0.001,113030.0,113020.0,1.2796]
[1757059142193,0.23015605,113030.0,113020.0,1.2796]
[1757059144295,0.001,113030.0,113020.0,1.2796]
[1757059144499,0.23015605,113030.0,113020.0,1.2796]
[1757059144689,0.001,113030.0,113020.0,1.2796]
[1757059144888,0.23015605,113030.0,113020.0,1.2796]
[1757059145890,0.25848605,113030.0,113020.0,1.27944]
[1757059147499,0.25848605,113030.0,113020.0,1.27932]
[1757059148987,0.02933,113030.0,113020.0,1.27932]
[1757059149192,0.25848605,113030.0,113020.0,1.27932]
[1757059152499,0.02933,113030.0,113020.0,1.27932]
[1757059152699,0.25848605,113030.0,113020.0,1.27932]
[1757059153906,0.25848605,113030.0,113020.0,1.27912]
[1757059154104,0.25848605,113030.0,113020.0,1.279]
[1757059155727,0.50848605,113030.0,113020.0,0.41456]
[1757059156024,0.51946605,113030.0,113020.0,0.39628]
[1757059156616,0.51946605,113030.0,113020.0,0.36522]
[1757059156818,0.51946605,113030.0,113020.0,0.00442]
[1757059157420,0.88026605,113030.0,113020.0,0.00442]
[1757059158326,0.51946605,113030.0,113020.0,0.00442]
[1757059159527,0.5480661,113030.0,113020.0,0.00442]
[1757059159714,0.2980661,113030.0,113020.0,0.03487]
[1757059159918,0.2870861,113030.0,113020.0,0.05173]
[1757059162724,0.2870861,113030.0,113020.0,0.41253]
[1757059170334,0.02933,113030.0,113020.0,0.41253]
[1757059170538,0.2870861,113030.0,113020.0,0.66253]
[1757059172425,0.02933,113030.0,113020.0,0.66253]
[1757059172628,0.2870861,113030.0,113020.0,0.66253]
[1757059177629,0.02933,113030.0,113020.0,0.66253]
[1757059177839,0.2870861,113030.0,113020.0,0.66253]
[1757059178141,0.02933,113030.0,113020.0,0.66253]
[1757059178532,0.2870861,113030.0,113020.0,0.66253]
[1757059182435,0.02933,113030.0,113020.0,0.66253]
[1757059182738,0.2870861,113030.0,113020.0,0.66253]
[1757059185241,0.5542422,113030.0,113020.0,0.41253]
[1757059185433,0.2870861,113030.0,113020.0,0.41253]
[1757059189450,0.02933,113030.0,113020.0,0.41253]
[1757059189749,0.2870861,113030.0,113020.0,0.41253]
[1757059191543,0.6650561,113030.0,113010.0,0.33195767]
[1757059191744,0.2868161,113020.0,113010.0,0.36011767]
[1757059191946,0.02906,113020.0,113010.0,0.36001767]
[1757059192344,0.2868161,113020.0,113010.0,0.36001767]
[1757059192545,0.2868161,113020.0,113010.0,0.36101767]
[1757059192745,0.02906,113020.0,113010.0,0.36101767]
[1757059193049,0.2868161,113020.0,113010.0,0.36101767]
[1757059194249,0.2868161,113020.0,113010.0,0.36001767]
[1757059194547,0.02906,113020.0,113010.0,0.36101767]
[1757059194748,0.2868161,113020.0,113010.0,0.36101767]
[1757059195050,0.02906,113020.0,113010.0,0.36101767]
[1757059195251,0.2868161,113020.0,113010.0,0.36101767]
[1757059195448,0.9225422,113020.0,113010.0,0.02916]
[1757059195845,0.40703,113020.0,113010.0,0.02916]
[1757059196044,0.9225422,113020.0,113010.0,0.02916]
[1757059200348,0.40703,113020.0,113010.0,0.02916]
[1757059201152,1.26927,113020.0,113010.0,0.02916]
[1757059201949,0.40703,113020.0,113010.0,0.04705]
[1757059202248,0.38986,113020.0,113010.0,0.04705]
[1757059202442,0.02906,113020.0,113010.0,0.04705]
[1757059202641,0.40703,113020.0,113010.0,0.02916]
[1757059202843,0.38986,113020.0,113010.0,0.02916]
[1757059203047,0.02906,113020.0,113010.0,0.04705]
[1757059204055,0.0001,113030.0,113010.0,0.04705]
[1757059204245,0.02916,113030.0,113020.0,0.40685]
[1757059204445,0.02906,113030.0,113020.0,0.40685]
[1757059205348,0.40703,113030.0,113010.0,0.01799]
[1757059205554,0.40703,113020.0,113010.0,0.02826]
[1757059205750,0.40703,113020.0,113010.0,0.02816]
[1757059205751,0.04623,113020.0,113010.0,0.02816]
[1757059205948,0.02906,113020.0,113010.0,0.04605]
[1757059207657,0.02906,113020.0,113010.0,0.04705]
[1757059208164,0.02906,113020.0,113010.0,0.40785]
[1757059208348,0.02906,113020.0,113010.0,0.04235589]
[1757059208549,0.02906,113020.0,113010.0,0.04335589]
[1757059208749,0.02906,113020.0,113010.0,0.40415589]
[1757059212354,0.38996,113030.0,113020.0,0.04605]
[1757059212558,0.38986,113030.0,113020.0,0.04605]
[1757059213153,0.02906,113030.0,113020.0,0.04605]
[1757059213358,0.02906,113030.0,113020.0,0.40685]
[1757059213359,0.03006,113030.0,113020.0,0.40685]
[1757059214765,0.28870828,113030.0,113020.0,0.40685]
[1757059215656,0.28870828,113030.0,113020.0,0.66449828]
[1757059216165,0.28870828,113030.0,113020.0,0.40685]
[1757059216462,0.28870828,113030.0,113020.0,0.66449828]
[1757059216659,0.28870828,113030.0,113020.0,0.40685]
[1757059216859,0.28870828,113030.0,113020.0,0.66449828]
[1757059217855,0.03106,113030.0,113020.0,0.40685]
[1757059218062,0.28873828,113030.0,113020.0,0.40685]
[1757059218256,0.28873828,113030.0,113020.0,0.66449828]
[1757059218453,0.03109,113030.0,113020.0,0.40685]
[1757059218758,0.28873828,113030.0,113020.0,0.66449828]
[1757059219467,0.03109,113030.0,113020.0,0.40685]
[1757059221458,0.002,113030.0,113020.0,0.40685]
[1757059222766,0.03109,113030.0,113020.0,0.40685]
[1757059223166,0.002,113030.0,113020.0,0.40685]
[1757059223370,0.03109,113030.0,113020.0,0.40685]
[1757059224064,0.002,113030.0,113020.0,0.40685]
[1757059225367,0.03109,113030.0,113020.0,0.40685]
[1757059225760,0.002,113030.0,113020.0,0.40685]
[1757059227269,0.002,113030.0,113020.0,0.63585907]
[1757059228470,0.03109,113030.0,113020.0,0.40685]
[1757059228666,0.03109,113030.0,113020.0,0.63585907]
[1757059228864,0.03109,113030.0,113020.0,0.40685]
[1757059230970,0.002,113030.0,113020.0,0.63585907]
[1757059231764,0.002,113030.0,113020.0,0.72432537]
[1757059231974,0.002,113030.0,113020.0,0.63585907]
[1757059233264,0.002,113030.0,113020.0,0.40685]
[1757059233574,0.03109,113030.0,113020.0,0.40685]
[1757059233769,0.002,113030.0,113020.0,0.63585907]
[1757059234072,0.03109,113030.0,113020.0,0.40685]
[1757059234669,0.03109,113030.0,113020.0,0.04605]
[1757059235672,0.28109,113030.0,113020.0,0.04605]
[1757059235975,0.88786907,113030.0,113020.0,0.02816]
[1757059236176,0.04606,113020.0,113010.0,0.07707]
[1757059236364,1.24772893,113020.0,113010.0,0.10715]
[1757059236568,1.01871986,113020.0,113010.0,0.10715]
[1757059236767,1.01871986,113020.0,113010.0,0.12543]
[1757059237067,0.75174986,113020.0,113010.0,0.12543]
[1757059237878,1.00174986,113020.0,113010.0,0.12543]
[1757059238376,0.64094986,113020.0,113010.0,0.12543]
[1757059238675,0.64094986,113020.0,113010.0,0.12643]
[1757059244282,0.04941778,113020.0,113010.0,0.5757049]
[1757059244580,0.04941778,113020.0,113010.0,0.48723]
[1757059245786,0.04941778,113020.0,113010.0,0.48281]
[1757059246981,0.04941778,113020.0,113010.0,0.5757049]
[1757059247284,0.04941778,113020.0,113010.0,0.80471397]
[1757059247583,0.04941778,113020.0,113010.0,0.5757049]
[1757059248286,0.02032778,113020.0,113010.0,0.5757049]
[1757059248490,0.3609,113030.0,113010.0,0.80471397]
[1757059248786,1.25153,113030.0,113020.0,0.04666]
[1757059248984,1.25143,113030.0,113020.0,0.04666]
[1757059249376,0.39067,113030.0,113020.0,0.04666]
[1757059250285,0.02987,113030.0,113020.0,0.04666]
[1757059251386,0.03087,113030.0,113020.0,0.04666]
[1757059251687,0.03087,113030.0,113020.0,0.36413617]
[1757059251888,0.03187,113030.0,113020.0,0.36413617]
[1757059252186,0.03187,113030.0,113020.0,0.1351271]
[1757059252385,0.39267,113030.0,113020.0,0.04666]
[1757059252586,0.03187,113030.0,113020.0,0.04666]
[1757059252887,0.03187,113030.0,113020.0,0.1351271]
[1757059253881,0.03187,113030.0,113020.0,0.4959271]
[1757059254081,0.03187,113030.0,113020.0,0.04666]
[1757059254477,0.27799907,113030.0,113020.0,0.04666]
[1757059254986,0.04899,113030.0,113020.0,0.04666]
[1757059255681,0.03187,113030.0,113020.0,0.04666]
[1757059256685,0.63879907,113030.0,113020.0,0.02998]
[1757059257284,0.88879907,113030.0,113020.0,0.02998]
[1757059259495,0.04699,113020.0,113010.0,0.10705]
[1757059259694,1.13615907,113020.0,113010.0,0.10695]
[1757059259883,1.13615907,113020.0,113010.0,0.10253]
[1757059260085,0.90715,113020.0,113010.0,0.11921]
[1757059260684,0.89003,113020.0,113010.0,0.11921]
[1757059261086,0.89003,113020.0,113010.0,0.12363]
[1757059261492,1.13615907,113020.0,113010.0,0.05208]